fUST/lending_fUST_20251220
["ID","MTS","AMOUNT","RATE_DAILY","PERIOD"]
[399269389,1766224526906,-761.092666,0.00032877,31]
[399269390,1766224526935,-761.092666,0.00032877,31]
[399269391,1766224526964,-761.092666,0.00032877,31]
[399269392,1766224526994,-761.092667,0.00032877,31]
[399269393,1766224527024,-2504.707471,0.00032877,31]
[399269394,1766224527054,-2504.707471,0.00032877,31]
[399269395,1766224527086,-2504.707471,0.00032877,31]
[399269396,1766224527117,-2504.707471,0.00032877,31]
[399269397,1766224527148,-2504.707471,0.00032877,31]
[399269398,1766224527180,-2504.707471,0.00032877,31]
[399269399,1766224527212,-2504.707471,0.00032877,31]
[399269400,1766224527246,-2504.707471,0.00032877,31]
[399269401,1766224527279,-2504.707471,0.00032877,31]
[399269402,1766224527310,-2504.707471,0.00032877,31]
[399269403,1766224527341,-2504.707471,0.00032877,31]
[399269404,1766224527371,-2504.707471,0.00032877,31]
[399269405,1766224527400,-2504.707471,0.00032877,31]
[399269406,1766224527430,-151.0,0.00032877,31]
[399269407,1766224527460,-2504.707471,0.00032877,31]
[399269408,1766224527490,-151.0,0.00032877,31]
[399269409,1766224527519,-2504.707471,0.00032877,31]
[399269410,1766224527550,-151.0,0.00032877,31]
[399269411,1766224527579,-2504.707471,0.00032877,31]
[399269412,1766224527611,-151.0,0.00032877,31]
[399269413,1766224527641,-2504.707471,0.00032877,31]
[399269414,1766224527672,-151.0,0.00032877,31]
[399269415,1766224527702,-2504.707471,0.00032877,31]
[399269416,1766224527735,-193.050061,0.00032877,31]
[399269417,1766224527768,-2504.707471,0.00032877,31]
[399269418,1766224527815,-2504.707477,0.00032877,31]
[399269419,1766224527845,-159.952797,0.00032877,31]
[399269420,1766224527874,-151.0,0.00032877,31]
[399269421,1766224527905,-151.0,0.00032877,31]
[399269422,1766224527936,-151.0,0.00032877,31]
[399269423,1766224527968,-151.0,0.00032877,31]
[399269424,1766224528003,-151.0,0.00032877,31]
[399269425,1766224528035,-151.0,0.00032877,31]
[399269426,1766224528065,-151.0,0.00032877,31]
[399269427,1766224528096,-287.37259231,0.00032877,31]
[399269428,1766224528128,-151.0,0.00032877,31]
[399269429,1766224528158,-151.303417,0.00032877,31]
[399269430,1766224528188,-151.0,0.00032877,31]
[399269431,1766224528220,-151.0,0.00032877,31]
[399269432,1766224528252,-151.0,0.00032877,31]
[399269433,1766224528297,-156.171681,0.00032877,31]
[399269434,1766224528332,-151.0,0.00032877,31]
[399269435,1766224528363,-151.0,0.00032877,31]
[399269436,1766224528394,-151.0,0.00032877,31]
[399269437,1766224528425,-151.0,0.00032877,31]
[399269438,1766224528456,-151.0,0.00032877,31]
[399269439,1766224528486,-151.0,0.00032877,31]
[399269440,1766224528516,-151.0,0.00032877,31]
[399269441,1766224528546,-151.0,0.00032877,31]
[399269442,1766224528576,-151.0,0.00032877,31]
[399269443,1766224528608,-174.783583,0.00032877,31]
[399269444,1766224528639,-151.0,0.00032877,31]
[399269445,1766224528670,-151.0,0.00032877,31]
[399269446,1766224528700,-224.514712,0.00032877,31]
[399269447,1766224528734,-151.0,0.00032877,31]
[399269448,1766224528763,-155.85967,0.00032877,31]
[399269449,1766224528792,-1064.359062,0.00032877,31]
[399269450,1766224528822,-1064.359062,0.00032877,31]
[399269451,1766224528852,-1064.359062,0.00032877,31]
[399269452,1766224528884,-1064.359062,0.00032877,31]
[399269453,1766224528916,-1064.359062,0.00032877,31]
[399269454,1766224528946,-1064.359062,0.00032877,31]
[399269455,1766224528981,-1064.359062,0.00032877,31]
[399269456,1766224529012,-1064.359062,0.00032877,31]
[399269457,1766224529043,-1064.359062,0.00032877,31]
[399269458,1766224529074,-1064.359062,0.00032877,31]
[399269459,1766224529104,-1064.359062,0.00032877,31]
[399269460,1766224529135,-1064.359062,0.00032877,31]
[399269461,1766224529167,-1064.359062,0.00032877,31]
[399269462,1766224529201,-1064.359062,0.00032877,31]
[399269463,1766224529233,-151.0,0.00032877,31]
[399269464,1766224529267,-1064.359062,0.00032877,31]
[399269465,1766224529299,-151.0,0.00032877,31]
[399269466,1766224529332,-151.0,0.00032877,31]
[399269467,1766224529364,-1064.359062,0.00032877,31]
[399269468,1766224529395,-151.0,0.00032877,31]
[399269469,1766224529431,-1064.359062,0.00032877,31]
[399269470,1766224529465,-151.0,0.00032877,31]
[399269471,1766224529501,-1064.359062,0.00032877,31]
[399269472,1766224529536,-1064.359062,0.00032877,31]
[399269473,1766224529572,-238.59528,0.00032877,31]
[399269474,1766224529606,-1064.359052,0.00032877,31]
[399269475,1766224529639,-151.0,0.00032877,31]
[399269476,1766224529677,-178.862978,0.00032877,31]
[399269477,1766224529709,-151.0,0.00032877,31]
[399269478,1766224529743,-175.519926,0.00032877,31]
[399269479,1766224529775,-151.0,0.00032877,31]
[399269480,1766224529808,-151.0,0.00032877,31]
[399269481,1766224529840,-151.0,0.00032877,31]
[399269482,1766224529873,-151.0,0.00032877,31]
[399269483,1766224529908,-151.0,0.00032877,31]
[399269484,1766224529941,-151.0,0.00032877,31]
[399269485,1766224529975,-297.054467,0.00032877,31]
[399269486,1766224530014,-1828.49,0.00032877,10]
[399269487,1766224530048,-339.17822,0.00032877,31]
[399269488,1766224530083,-339.17822,0.00032877,31]
[399269489,1766224530117,-339.17822,0.00032877,31]
[399269490,1766224530154,-339.17822,0.00032877,31]
[399269491,1766224530186,-339.17822,0.00032877,31]
[399269492,1766224530220,-339.17822,0.00032877,31]
[399269493,1766224530253,-339.17822,0.00032877,31]
[399269494,1766224530285,-339.17822,0.00032877,31]
[399269495,1766224530319,-339.17822,0.00032877,31]
[399269496,1766224530353,-339.17822,0.00032877,31]
[399269497,1766224530388,-339.17822,0.00032877,31]
[399269498,1766224530423,-339.17822,0.00032877,31]
[399269499,1766224530456,-339.17822,0.00032877,31]
[399269500,1766224530492,-339.17822,0.00032877,31]
[399269501,1766224530527,-339.17822,0.00032877,31]
[399269502,1766224530561,-339.17822,0.00032877,31]
[399269503,1766224530597,-339.17822,0.00032877,31]
[399269504,1766224530632,-339.17822,0.00032877,31]
[399269505,1766224530667,-339.17822,0.00032877,31]
[399269506,1766224530702,-339.17821,0.00032877,31]
[399269507,1766224530737,-500.0,0.00033002,7]
[399269508,1766224530771,-737.53,0.0003315,30]
[399269509,1766224530806,-413.98372075,0.000332,117]
[399269510,1766224530840,-413.98372073,0.000332,117]
[399269511,1766224530873,-413.98372073,0.000332,117]
[399269512,1766224530908,-500.0,0.00033224,7]
[399269513,1766224530941,-166.0,0.00033226,30]
[399269514,1766224530978,-1000.0,0.00033296,30]
[399269515,1766224531014,-1000.0,0.00033296,30]
[399269516,1766224531050,-189.0,0.00033397,60]
[399269517,1766224531101,-2899.59,0.000336,14]
[399269518,1766224531139,-1460.24,0.000337,60]
[399269519,1766224531179,-1290.86,0.000337,30]
[399269520,1766224531218,-1073.54379837,0.00033904,120]
[399269521,1766224531256,-737.53,0.00033972,31]
[399269522,1766224531294,-20900.0,0.00034,120]
[399269523,1766224531331,-200.0,0.00034,120]
[399269524,1766224531368,-500.0,0.00034737,7]
[399269525,1766224531404,-737.53,0.00034794,32]
[399269526,1766224531439,-1797.29163069,0.00035,120]
[399269527,1766224531473,-155.0,0.00035041,74]
[399269528,1766224531505,-889.006766,0.0003516,120]
[399269529,1766224531538,-200.0,0.0003546,41]
[399269530,1766224531572,-737.53,0.00035616,33]
[399269531,1766224531605,-500.0,0.00035616,120]
[399269532,1766224531638,-500.0,0.00035616,7]
[399269533,1766224531939,-500.0,0.00035616,7]
[399269534,1766224531971,-233.16607711,0.00035616,7]
[399269535,1766224532005,-500.0,0.00035616,7]
[399269536,1766224532037,-500.0,0.00035616,7]
[399269537,1766224532068,-500.0,0.00035616,7]
[399269538,1766224532098,-500.0,0.00035616,7]
[399269539,1766224532128,-500.0,0.00035616,7]
[399269540,1766224532160,-500.0,0.00035616,7]
[399269541,1766224532193,-500.0,0.00035616,7]
[399269542,1766224532225,-500.0,0.00035616,7]
[399269543,1766224532257,-500.0,0.00035616,7]
[399269544,1766224532287,-500.0,0.00035616,7]
[399269545,1766224532320,-500.0,0.00035616,7]
[399269546,1766224532350,-500.0,0.00035616,7]
[399269547,1766224532380,-500.0,0.00035616,7]
[399269548,1766224532409,-500.0,0.00035616,7]
[399269549,1766224532440,-500.0,0.00035616,7]
[399269550,1766224532471,-500.0,0.00035616,7]
[399269551,1766224532503,-500.0,0.00035616,7]
[399269552,1766224532534,-500.0,0.00035616,7]
[399269553,1766224532564,-500.0,0.00035616,7]
[399269554,1766224532594,-481.75428372,0.00035616,7]
[399269555,1766224532622,-500.0,0.00035616,7]
[399269556,1766224532651,-500.0,0.00035616,7]
[399269557,1766224532680,-500.0,0.00035616,7]
[399269558,1766224532708,-500.0,0.00035616,7]
[399269559,1766224532740,-500.0,0.00035616,7]
[399269560,1766224532769,-500.0,0.00035616,7]
[399269561,1766224532798,-500.0,0.00035616,7]
[399269562,1766224532828,-500.0,0.00035616,7]
[399269563,1766224532856,-500.0,0.00035616,7]
[399269564,1766224532885,-500.0,0.00035616,7]
[399269565,1766224532915,-500.0,0.00035616,7]
[399269566,1766224532944,-500.0,0.00035616,7]
[399269567,1766224532973,-500.0,0.00035616,7]
[399269568,1766224533002,-500.0,0.00035616,7]
[399269569,1766224533032,-500.0,0.00035616,7]
[399269570,1766224533063,-500.0,0.00035616,7]
[399269571,1766224533093,-500.0,0.00035616,7]
[399269572,1766224533123,-500.0,0.00035616,7]
[399269573,1766224533153,-500.0,0.00035616,7]
[399269574,1766224533191,-500.0,0.00035616,7]
[399269575,1766224533224,-179.342797,0.00035616,31]
[399269576,1766224533259,-179.342797,0.00035616,31]
[399269577,1766224533307,-179.342797,0.00035616,31]
[399269578,1766224533339,-179.342797,0.00035616,31]
[399269579,1766224533371,-179.342797,0.00035616,31]
[399269580,1766224533405,-179.342797,0.00035616,31]
[399269581,1766224533449,-179.342797,0.00035616,31]
[399269582,1766224533481,-179.342797,0.00035616,31]
[399269583,1766224533513,-179.342797,0.00035616,31]
[399269584,1766224533545,-179.342797,0.00035616,31]
[399269585,1766224533576,-179.342797,0.00035616,31]
[399269586,1766224533607,-179.342797,0.00035616,31]
[399269587,1766224533638,-179.342797,0.00035616,31]
[399269588,1766224533668,-179.342797,0.00035616,31]
[399269589,1766224533699,-179.342797,0.00035616,31]
[399269590,1766224533729,-179.342797,0.00035616,31]
[399269591,1766224533761,-179.342797,0.00035616,31]
[399269592,1766224533793,-179.342797,0.00035616,31]
[399269593,1766224533823,-179.342797,0.00035616,31]
[399269594,1766224533851,-179.342801,0.00035616,31]
[399269595,1766224533881,-163.20036606,0.0003562,30]
[399269596,1766224533915,-163.20036606,0.0003562,30]
[399269597,1766224533945,-163.20036606,0.0003562,30]
[399269598,1766224533977,-163.2,0.0003562,30]
[399269599,1766224534009,-152.32034166,0.0003562,30]
[399269600,1766224534040,-152.32034166,0.0003562,30]
[399269601,1766224534073,-152.32034166,0.0003562,30]
[399269602,1766224534106,-152.32034166,0.0003562,30]
[399269603,1766224534138,-152.80645204,0.0003562,30]
[399269604,1766224534171,-152.80645204,0.0003562,30]
[399269605,1766224534213,-152.80645204,0.0003562,30]
[399269606,1766224534265,-152.80645204,0.0003562,30]
[399269607,1766224534298,-152.80645204,0.0003562,30]
[399269608,1766224534344,-152.80645204,0.0003562,30]
[399269609,1766224534385,-152.80645204,0.0003562,30]
[399269610,1766224534429,-152.80645204,0.0003562,30]
[399269611,1766224534473,-152.80645204,0.0003562,30]
[399269612,1766224534513,-152.80645204,0.0003562,30]
[399269613,1766224534555,-152.80645204,0.0003562,30]
[399269614,1766224534593,-152.80645204,0.0003562,30]
[399269615,1766224534631,-152.80645204,0.0003562,30]
[399269616,1766224534672,-152.80645204,0.0003562,30]
[399269617,1766224534715,-152.80645204,0.0003562,30]
[399269618,1766224534751,-152.80645204,0.0003562,30]
[399269619,1766224534790,-152.8,0.0003562,30]
[399269620,1766224534827,-303.06612987,0.0003562,30]
[399269621,1766224534865,-303.06612987,0.0003562,30]
[399269622,1766224534899,-303.06612987,0.0003562,30]
[399269623,1766224534939,-303.06612987,0.0003562,30]
[399269624,1766224534975,-303.06612987,0.0003562,30]
[399269625,1766224535010,-303.06612987,0.0003562,30]
[399269626,1766224535046,-303.06612987,0.0003562,30]
[399269627,1766224535080,-303.06612987,0.0003562,30]
[399269628,1766224535120,-303.06612987,0.0003562,30]
[399269629,1766224535157,-158.95521843,0.0003562,30]
[399269630,1766224535193,-158.95521843,0.0003562,30]
[399269631,1766224535232,-158.95521843,0.0003562,30]
[399269632,1766224535274,-158.95521843,0.0003562,30]
[399269633,1766224535311,-158.95521843,0.0003562,30]
[399269634,1766224535347,-158.95521843,0.0003562,30]
[399269635,1766224535384,-158.95521843,0.0003562,30]
[399269636,1766224535419,-158.95,0.0003562,30]
[399269637,1766224535456,-156.16653039,0.0003562,30]
[399269638,1766224535492,-156.16653039,0.0003562,30]
[399269639,1766224535527,-156.16653039,0.0003562,30]
[399269640,1766224535563,-156.16653039,0.0003562,30]
[399269641,1766224535598,-156.16653039,0.0003562,30]
[399269642,1766224535632,-156.16653039,0.0003562,30]
[399269643,1766224535666,-156.16653039,0.0003562,30]
[399269644,1766224535699,-156.16653039,0.0003562,30]
[399269645,1766224535732,-156.16653039,0.0003562,30]
[399269646,1766224535767,-413.98372073,0.00035635,120]
[399269647,1766224535801,-152.32034166,0.0003573,30]
[399269648,1766224535835,-303.06612987,0.0003573,30]
[399269649,1766224535870,-1142.55732827,0.00035904,120]
[399269650,1766224535904,-156.16653039,0.00035939,30]
[399269651,1766224535943,-200.0,0.00036,120]
[399269652,1766224535980,-500.0,0.00036,120]
[399269653,1766224536015,-500.0,0.00036078,30]
[399269654,1766224536048,-303.06612987,0.00036127,30]
[399269655,1766224536082,-166.0,0.00036247,30]
[399269656,1766224536116,-1290.86,0.000363,30]
[399269657,1766224536150,-156.16653039,0.00036357,30]
[399269658,1766224536186,-737.53,0.00036438,34]
[399269659,1766224536224,-500.0,0.00036438,30]
[399269660,1766224536263,-152.32034166,0.00036524,30]
[399269661,1766224536301,-303.06612987,0.00036524,30]
[399269662,1766224536343,-1000.0,0.00036625,30]
[399269663,1766224536385,-1000.0,0.00036625,30]
[399269664,1766224536424,-579.0,0.00036625,30]
[399269665,1766224536461,-163.0,0.00036685,91]
[399269666,1766224536499,-156.16653039,0.00036775,30]
[399269667,1766224536536,-500.0,0.00036885,30]
[399269668,1766224536573,-167.0,0.000369,120]
[399269669,1766224536610,-303.06612987,0.00036921,30]
[399269670,1766224536646,-1000.0,0.00036986,120]
[399269671,1766224536683,-2899.59,0.00037,14]
[399269672,1766224536720,-500.0,0.00037,120]
[399269673,1766224536755,-500.0,0.00037071,30]
[399269674,1766224536792,-156.16653039,0.00037193,30]
[399269675,1766224536827,-737.53,0.0003726,35]
[399269676,1766224537158,-152.32034166,0.00037318,30]
[399269677,1766224537192,-303.06612987,0.00037318,30]
[399269678,1766224537224,-787.14585117,0.0003748,30]
[399269679,1766224537256,-367.0,0.00037513,30]
[399269680,1766224537287,-586.90177,0.000376,120]
[399269681,1766224537319,-467.85584,0.000376,120]
[399269682,1766224537351,-349.43741,0.000376,120]
[399269683,1766224537382,-156.16653039,0.00037611,30]
[399269684,1766224537414,-303.06612987,0.00037715,30]
[399269685,1766224537443,-200.0,0.0003787,48]
[399269686,1766224537474,-1211.57085816,0.00037904,120]
[399269687,1766224537504,-1005.88,0.00038,30]
[399269688,1766224537536,-200.0,0.00038,120]
[399269689,1766224537567,-184.99738803,0.00038,30]
[399269690,1766224537597,-16049.56318139,0.0003801,3]
[399269691,1766224537629,-156.16653039,0.00038028,30]
[399269692,1766224537660,-737.53,0.00038082,36]
[399269693,1766224537689,-152.32034166,0.00038112,30]
[399269694,1766224537719,-303.06612987,0.00038112,30]
[399269695,1766224537748,-500.0,0.00038356,120]
[399269696,1766224537779,-1000.0,0.00038356,120]
[399269697,1766224537812,-500.0,0.00038356,5]
[399269698,1766224537843,-500.0,0.00038356,30]
[399269699,1766224537872,-500.0,0.00038356,5]
[399269700,1766224537900,-500.0,0.00038426,30]
[399269701,1766224537933,-500.0,0.0003844,30]
[399269702,1766224537962,-156.16653039,0.00038446,120]
[399269703,1766224537992,-500.0,0.00038465,30]
[399269704,1766224538022,-303.06612987,0.00038509,120]
[399269705,1766224538054,-1000.0,0.0003863,5]
[399269706,1766224538084,-522.09273817,0.000387,120]
[399269707,1766224538115,-167.0,0.00038745,120]
[399269708,1766224538144,-156.16653039,0.00038864,120]
[399269709,1766224538176,-176.0,0.00038877,118]
[399269710,1766224538207,-9508.03173078,0.00038889,120]
[399269711,1766224538239,-737.53,0.00038904,37]
[399269712,1766224538269,-1500.0,0.00038904,5]
[399269713,1766224538299,-500.0,0.00038904,30]
[399269714,1766224538328,-1000.0,0.00038904,5]
[399269715,1766224538358,-152.32034166,0.00038906,120]
[399269716,1766224538388,-303.06612987,0.00038906,120]
[399269717,1766224538420,-500.0,0.00038929,30]
[399269718,1766224538450,-150.0,0.00039,120]
[399269719,1766224538483,-289.663826,0.00039041,120]
[399269720,1766224538516,-289.663826,0.00039041,120]
[399269721,1766224538547,-289.663826,0.00039041,120]
[399269722,1766224538579,-289.663826,0.00039041,120]
[399269723,1766224538611,-289.663826,0.00039041,120]
[399269724,1766224538642,-289.663826,0.00039041,120]
[399269725,1766224538672,-289.663826,0.00039041,120]
[399269726,1766224538703,-289.663826,0.00039041,120]
[399269727,1766224538732,-289.663826,0.00039041,120]
[399269728,1766224538762,-289.663826,0.00039041,120]
[399269729,1766224538792,-289.663826,0.00039041,120]
[399269730,1766224538821,-289.663826,0.00039041,120]
[399269731,1766224538851,-289.663826,0.00039041,120]
[399269732,1766224538882,-289.663826,0.00039041,120]
[399269733,1766224538915,-289.663826,0.00039041,120]
[399269734,1766224538946,-289.663826,0.00039041,120]
[399269735,1766224538977,-289.663826,0.00039041,120]
[399269736,1766224539007,-289.663826,0.00039041,120]
[399269737,1766224539042,-289.663826,0.00039041,120]
[399269738,1766224539078,-289.66383536,0.00039041,120]
[399269739,1766224539111,-500.0,0.0003911,30]
[399269740,1766224539147,-2000.0,0.00039178,5]
[399269741,1766224539187,-156.16653039,0.00039282,120]
[399269742,1766224539228,-303.06612987,0.00039303,120]
[399269743,1766224539269,-156.5,0.00039378,120]
[399269744,1766224539308,-165.57982473,0.00039378,120]
[399269745,1766224539346,-500.0,0.00039452,30]
[399269746,1766224539382,-507.97612302,0.00039452,5]
[399269747,1766224539415,-1500.0,0.00039452,5]
[399269748,1766224539447,-156.5,0.00039478,120]
[399269749,1766224539480,-82434.31863079,0.000395,7]
[399269750,1766224539511,-156.5,0.00039578,120]
[399269751,1766224539543,-156.5,0.00039678,120]
[399269752,1766224539576,-152.32,0.000397,120]
[399269753,1766224539609,-303.06,0.000397,120]
[399269754,1766224539641,-156.16,0.000397,120]
[399269755,1766224539673,-737.53,0.00039726,38]
[399269756,1766224539706,-587.58501506,0.00039767,30]
[399269757,1766224539737,-156.5,0.00039778,120]
[399269758,1766224539768,-156.5,0.00039878,120]
[399269759,1766224539800,-500.0,0.00039891,30]
[399269760,1766224539833,-1280.58438806,0.00039904,120]
[399269761,1766224539864,-156.5,0.00039978,120]
[399269762,1766224539897,-500.0,0.00039999,7]
[399269763,1766224539932,-521.81533118,0.00039999,31]
[399269764,1766224540111,-500.0,0.00039999,31]
[399269765,1766224540147,-500.0,0.00039999,31]
[399269766,1766224540181,-500.0,0.00039999,31]
[399269767,1766224540216,-500.0,0.00039999,31]
[399269768,1766224540250,-500.0,0.00039999,7]
[399269769,1766224540285,-500.0,0.00039999,31]
[399269770,1766224540318,-500.0,0.00039999,31]
[399269771,1766224540350,-500.0,0.00039999,31]
[399269772,1766224540381,-500.0,0.00039999,31]
[399269773,1766224540414,-319.54860231,0.00039999,7]
[399269774,1766224540447,-500.0,0.00039999,31]
[399269775,1766224540479,-500.0,0.00039999,31]
[399269776,1766224540511,-161.60564776,0.00039999,31]
[399269777,1766224540543,-500.0,0.00039999,31]
[399269778,1766224540575,-500.0,0.00039999,31]
[399269779,1766224540607,-500.0,0.00039999,31]
[399269780,1766224540638,-283.77595511,0.00039999,31]
[399269781,1766224540671,-500.0,0.00039999,7]
[399269782,1766224540704,-500.0,0.00039999,31]
[399269783,1766224540737,-500.0,0.00039999,31]
[399269784,1766224540770,-500.0,0.00039999,31]
[399269785,1766224540802,-500.0,0.00039999,31]
[399269786,1766224540835,-500.0,0.00039999,31]
[399269787,1766224540867,-500.0,0.00039999,31]
[399269788,1766224540899,-500.0,0.00039999,31]
[399269789,1766224540936,-500.0,0.00039999,31]
[399269790,1766224540970,-500.0,0.00039999,31]
[399269791,1766224541004,-500.0,0.00039999,31]
[399269792,1766224541038,-500.0,0.00039999,31]
[399269793,1766224541072,-500.0,0.00039999,31]
[399269794,1766224541106,-544.05417993,0.00039999,31]
[399269795,1766224541138,-500.0,0.00039999,31]
[399269796,1766224541171,-500.0,0.00039999,31]
[399269797,1766224541206,-500.0,0.00039999,31]
[399269798,1766224541241,-500.0,0.00039999,31]
[399269799,1766224541275,-500.0,0.00039999,31]
[399269800,1766224541310,-500.0,0.00039999,31]
[399269801,1766224541344,-500.0,0.00039999,31]
[399269802,1766224541378,-500.0,0.00039999,31]
[399269803,1766224541411,-500.0,0.00039999,31]
[399269804,1766224541444,-500.0,0.00039999,31]
[399269805,1766224541478,-403.17432625,0.00039999,31]
[399269806,1766224541511,-157.43409194,0.00039999,31]
[399269807,1766224541542,-254.24278503,0.00039999,31]
[399269808,1766224541576,-500.0,0.00039999,31]
[399269809,1766224541609,-451.87489217,0.00039999,31]
[399269810,1766224541642,-500.0,0.00039999,31]
[399269811,1766224541674,-497.97269819,0.00039999,31]
[399269812,1766224541707,-236.85172363,0.00039999,31]
[399269813,1766224541739,-500.0,0.00039999,31]
[399269814,1766224541770,-500.0,0.00039999,31]
[399269815,1766224541802,-500.0,0.0004,30]
[399269816,1766224541834,-517.25934227,0.0004,30]
[399269817,1766224541866,-200.0,0.0004,120]
[399269818,1766224541897,-59806.74358126,0.0004,120]
[399269819,1766224541934,-181.25414898,0.0004,30]
[399269820,1766224541967,-1041.66666667,0.0004,120]
[399269821,1766224541999,-200.77284927,0.0004,120]
[399269822,1766224542031,-1041.66666667,0.0004,3]
[399269823,1766224542064,-1041.66666667,0.0004,10]
[399269824,1766224542096,-374.0,0.0004,120]
[399269825,1766224542129,-454.31721737,0.0004,120]
[399269826,1766224542160,-1436.40930502,0.0004,120]
[399269827,1766224542194,-1136.55976347,0.0004,30]
[399269828,1766224542226,-1502.95720839,0.0004,120]
[399269829,1766224542258,-173.69265405,0.0004,120]
[399269830,1766224542291,-1116.42931927,0.0004,120]
[399269831,1766224542322,-1100.53557232,0.0004,120]
[399269832,1766224542354,-3500.0,0.0004,80]
[399269833,1766224542386,-150.0,0.0004,120]
[399269834,1766224542420,-2000.0,0.0004,120]
[399269835,1766224542454,-263.41617571,0.0004,5]
[399269836,1766224542488,-500.0,0.00040047,30]
[399269837,1766224542522,-190.578,0.00040065,56]
[399269838,1766224542556,-156.5,0.00040078,120]
[399269839,1766224542589,-2899.59,0.000401,14]
[399269840,1766224542621,-156.5,0.00040178,120]
[399269841,1766224542652,-889.006766,0.00040183,120]
[399269842,1766224542684,-3000.0,0.00040269,14]
[399269843,1766224542714,-156.5,0.00040278,120]
[399269844,1766224542744,-202.0,0.0004028,54]
[399269845,1766224542777,-1000.0,0.00040288,60]
[399269846,1766224542810,-1000.0,0.00040288,60]
[399269847,1766224542843,-1000.0,0.00040288,60]
[399269848,1766224542875,-156.5,0.00040378,120]
[399269849,1766224542906,-873.33136749,0.00040437,71]
[399269850,1766224542939,-156.5,0.00040478,120]
[399269851,1766224542970,-370.10586492,0.000405,30]
[399269852,1766224543002,-737.53,0.00040547,39]
[399269853,1766224543036,-500.0,0.00040548,30]
[399269854,1766224543069,-156.5,0.00040578,120]
[399269855,1766224543102,-156.5,0.00040678,120]
[399269856,1766224543134,-167.0,0.00040682,120]
[399269857,1766224543166,-156.5,0.00040778,120]
[399269858,1766224543199,-613.18394033,0.00040822,120]
[399269859,1766224543385,-156.5,0.00040878,120]
[399269860,1766224543421,-156.5,0.00040978,120]
[399269861,1766224543456,-11100.0,0.00041,20]
[399269862,1766224543491,-500.0,0.00041,120]
[399269863,1766224543525,-1000.0,0.00041,120]
[399269864,1766224543558,-1053.23399576,0.00041,120]
[399269865,1766224543591,-150.0,0.00041,120]
[399269866,1766224543624,-1290.86,0.00041,30]
[399269867,1766224543657,-402.25692847,0.00041018,13]
[399269868,1766224543689,-152.0,0.00041041,7]
[399269869,1766224543722,-156.5,0.00041078,120]
[399269870,1766224543755,-3000.0,0.00041091,60]
[399269871,1766224543786,-1200.0,0.00041095,120]
[399269872,1766224543817,-1200.0,0.00041095,120]
[399269873,1766224543848,-408.25659437,0.00041095,120]
[399269874,1766224543879,-500.0,0.00041095,60]
[399269875,1766224543914,-1000.0,0.00041095,120]
[399269876,1766224543946,-500.0,0.00041096,120]
[399269877,1766224543985,-500.0,0.00041096,120]
[399269878,1766224544023,-196.14,0.00041096,120]
[399269879,1766224544057,-573.839765,0.00041096,120]
[399269880,1766224544091,-573.839765,0.00041096,120]
[399269881,1766224544123,-573.839765,0.00041096,120]
[399269882,1766224544156,-573.839765,0.00041096,120]
[399269883,1766224544194,-573.839765,0.00041096,120]
[399269884,1766224544228,-573.839765,0.00041096,120]
[399269885,1766224544261,-573.839765,0.00041096,120]
[399269886,1766224544294,-573.839765,0.00041096,120]
[399269887,1766224544326,-573.839765,0.00041096,120]
[399269888,1766224544358,-573.839765,0.00041096,120]